[Event "Titled Tuesday Blitz August 17 2021"]
[White "Kezin, Roman"]
[Black "Eternauta2400"]
[WhiteFideId "24124621"]
[WhiteElo "2570"]
[BlackElo "2559"]
[Result "1-0"]
[Round "05"]
[TimeControl "180+1"]
[Date "2021.08.17"]
[WhiteClock "0:00:26"]
[BlackClock "0:00:14"]

1. d4 {[%clk 0:02:59]}  Nf6 {[%clk 0:02:58]} 2. c4 {[%clk 0:03:00]}  e6 {[%clk 0:02:58]} 3. g3 {[%clk 0:03:00]}  d5 {[%clk 0:02:58]} 4. Bg2 {[%clk 0:03:00]}  dxc4 {[%clk 0:02:58]} 5. Nf3 {[%clk 0:03:01]}  Nbd7 {[%clk 0:02:58]} 6. O-O {[%clk 0:03:00]}  a6 {[%clk 0:02:58]} 7. Nc3 {[%clk 0:02:56]}  Bb4 {[%clk 0:02:49]} 8. Nd2 {[%clk 0:02:44]}  c5 {[%clk 0:02:18]} 9. Nxc4 {[%clk 0:02:39]}  O-O {[%clk 0:02:15]} 10. Nd6 {[%clk 0:02:26]}  cxd4 {[%clk 0:02:10]} 11. Qxd4 {[%clk 0:02:24]}  Bc5 {[%clk 0:02:07]} 12. Qd2 {[%clk 0:02:10]}  Qc7 {[%clk 0:02:03]} 13. Rd1 {[%clk 0:02:07]}  Rd8 {[%clk 0:01:59]} 14. Nde4 {[%clk 0:02:03]}  Be7 {[%clk 0:01:56]} 15. Qf4 {[%clk 0:02:01]}  e5 {[%clk 0:01:10]} 16. Qh4 {[%clk 0:02:00]}  Nf8 {[%clk 0:01:08]} 17. Bg5 {[%clk 0:01:59]}  Ng6 {[%clk 0:01:03]} 18. Nxf6+ {[%clk 0:01:01]}  gxf6 {[%clk 0:01:01]} 19. Qh5 {[%clk 0:01:00]}  fxg5 {[%clk 0:01:00]} 20. Nd5 {[%clk 0:01:01]}  Rxd5 {[%clk 0:00:48]} 21. Bxd5 {[%clk 0:01:02]}  Bd7 {[%clk 0:00:45]} 22. Rac1 {[%clk 0:00:59]}  Bc6 {[%clk 0:00:44]} 23. Qf3 {[%clk 0:00:49]}  Rf8 {[%clk 0:00:32]} 24. Bxc6 {[%clk 0:00:48]}  bxc6 {[%clk 0:00:33]} 25. Rxc6 {[%clk 0:00:48]}  Qa5 {[%clk 0:00:33]} 26. Qd5 {[%clk 0:00:43]}  Qa4 {[%clk 0:00:26]} 27. Rdc1 {[%clk 0:00:35]}  Rd8 {[%clk 0:00:25]} 28. Qc4 {[%clk 0:00:34]}  Rd1+ {[%clk 0:00:24]} 29. Kg2 {[%clk 0:00:34]}  Qxc4 {[%clk 0:00:19]} 30. R6xc4 {[%clk 0:00:35]}  Rxc1 {[%clk 0:00:19]} 31. Rxc1 {[%clk 0:00:35]}  e4 {[%clk 0:00:19]} 32. Rc6 {[%clk 0:00:34]}  Ne5 {[%clk 0:00:19]} 33. Rxa6 {[%clk 0:00:33]}  Kg7 {[%clk 0:00:15]} 34. a4 {[%clk 0:00:32]}  f5 {[%clk 0:00:15]} 35. Re6 {[%clk 0:00:30]}  Bf6 {[%clk 0:00:15]} 36. a5 {[%clk 0:00:30]}  Kf7 {[%clk 0:00:15]} 37. Rb6 {[%clk 0:00:25]}  Bd8 {[%clk 0:00:13]} 38. Rb7+ {[%clk 0:00:25]}  Ke6 {[%clk 0:00:13]} 39. a6 {[%clk 0:00:26]}  Nc6 {[%clk 0:00:13]} 40. a7 {[%clk 0:00:26]}  Nxa7 {[%clk 0:00:13]} 41. Rxa7 {[%clk 0:00:27]}  f4 {[%clk 0:00:14]} 42. gxf4 {[%clk 0:00:26]}  gxf4 {[%clk 0:00:15]} 43. Rxh7 {[%clk 0:00:27]}  Bf6 {[%clk 0:00:14]} 44. b4 {[%clk 0:00:27]}  Kf5 {[%clk 0:00:14]} 45. Rf7 {[%clk 0:00:26]} 1-0


[Site "https://www.chess.com"]

[Event "Titled Tuesday Blitz August 17 2021"]
[White "Khanin, Semen"]
[Black "Onyshchuk, Volodymyr"]
[WhiteFideId "4111990"]
[BlackFideId "14114038"]
[WhiteElo "2521"]
[BlackElo "2603"]
[Result "1-0"]
[Round "05"]
[TimeControl "180+1"]
[Date "2021.08.17"]
[WhiteClock "0:00:41"]
[BlackClock "0:00:25"]

1. e4 {[%clk 0:03:00]}  d6 {[%clk 0:02:59]} 2. d4 {[%clk 0:03:00]}  Nf6 {[%clk 0:03:00]} 3. Nc3 {[%clk 0:03:00]}  g6 {[%clk 0:03:01]} 4. Nf3 {[%clk 0:02:58]}  Bg7 {[%clk 0:03:01]} 5. Be3 {[%clk 0:02:59]}  O-O {[%clk 0:02:58]} 6. Qd2 {[%clk 0:02:59]}  c6 {[%clk 0:02:57]} 7. Bh6 {[%clk 0:02:59]}  Bg4 {[%clk 0:02:51]} 8. h4 {[%clk 0:02:57]}  Bxf3 {[%clk 0:02:41]} 9. gxf3 {[%clk 0:02:57]}  Nh5 {[%clk 0:02:39]} 10. Bh3 {[%clk 0:02:45]}  e5 {[%clk 0:02:38]} 11. Bxg7 {[%clk 0:02:39]}  Kxg7 {[%clk 0:02:35]} 12. Ne2 {[%clk 0:02:36]}  Qf6 {[%clk 0:02:32]} 13. Bg4 {[%clk 0:02:35]}  Nf4 {[%clk 0:02:21]} 14. Nxf4 {[%clk 0:02:34]}  Qxf4 {[%clk 0:02:21]} 15. Qxf4 {[%clk 0:02:34]}  exf4 {[%clk 0:02:21]} 16. h5 {[%clk 0:02:34]}  Na6 {[%clk 0:02:08]} 17. h6+ {[%clk 0:02:34]}  Kf6 {[%clk 0:02:07]} 18. O-O-O {[%clk 0:02:34]}  Nc7 {[%clk 0:02:00]} 19. c4 {[%clk 0:02:03]}  Ke7 {[%clk 0:01:48]} 20. Rhe1 {[%clk 0:01:58]}  Rad8 {[%clk 0:01:42]} 21. Kc2 {[%clk 0:01:56]}  c5 {[%clk 0:01:22]} 22. e5 {[%clk 0:01:50]}  d5 {[%clk 0:01:22]} 23. dxc5 {[%clk 0:01:45]}  dxc4 {[%clk 0:01:15]} 24. Kc3 {[%clk 0:01:31]}  b6 {[%clk 0:00:48]} 25. c6 {[%clk 0:01:20]}  b5 {[%clk 0:00:44]} 26. Kb4 {[%clk 0:01:03]}  a6 {[%clk 0:00:40]} 27. Ka5 {[%clk 0:00:56]}  Ne6 {[%clk 0:00:37]} 28. Bxe6 {[%clk 0:00:51]}  Kxe6 {[%clk 0:00:27]} 29. Rxd8 {[%clk 0:00:42]}  Rxd8 {[%clk 0:00:26]} 30. Kxa6 {[%clk 0:00:42]}  Ra8+ {[%clk 0:00:25]} 31. Kb7 {[%clk 0:00:41]} 1-0


[Site "https://www.chess.com"]

[Event "Titled Tuesday Blitz August 17 2021"]
[White "Khumalo, Keith"]
[Black "Dang, Hoang Son"]
[WhiteFideId "14319470"]
[BlackFideId "12402435"]
[WhiteElo "1992"]
[BlackElo "2248"]
[Result "0-1"]
[Round "05"]
[TimeControl "180+1"]
[Date "2021.08.17"]
[WhiteClock "0:01:06"]
[BlackClock "0:00:20"]

1. d4 {[%clk 0:03:00]}  Nf6 {[%clk 0:02:59]} 2. c4 {[%clk 0:03:01]}  g6 {[%clk 0:02:57]} 3. Nc3 {[%clk 0:03:01]}  Bg7 {[%clk 0:02:57]} 4. e4 {[%clk 0:03:01]}  O-O {[%clk 0:02:57]} 5. Bd3 {[%clk 0:03:01]}  d6 {[%clk 0:02:57]} 6. Nge2 {[%clk 0:03:02]}  e5 {[%clk 0:02:51]} 7. d5 {[%clk 0:03:02]}  Na6 {[%clk 0:02:51]} 8. O-O {[%clk 0:03:02]}  Nc5 {[%clk 0:02:51]} 9. Bc2 {[%clk 0:03:02]}  a5 {[%clk 0:02:52]} 10. a3 {[%clk 0:03:03]}  c6 {[%clk 0:02:51]} 11. Rb1 {[%clk 0:03:03]}  cxd5 {[%clk 0:02:52]} 12. cxd5 {[%clk 0:03:03]}  Bd7 {[%clk 0:02:52]} 13. b4 {[%clk 0:03:03]}  axb4 {[%clk 0:02:52]} 14. axb4 {[%clk 0:03:04]}  Na6 {[%clk 0:02:53]} 15. f3 {[%clk 0:03:03]}  Nh5 {[%clk 0:02:51]} 16. Be3 {[%clk 0:03:01]}  f5 {[%clk 0:02:51]} 17. exf5 {[%clk 0:03:02]}  gxf5 {[%clk 0:02:50]} 18. f4 {[%clk 0:03:02]}  Nf6 {[%clk 0:02:47]} 19. h3 {[%clk 0:03:02]}  e4 {[%clk 0:02:33]} 20. Ba4 {[%clk 0:03:02]}  Rc8 {[%clk 0:02:15]} 21. Bxd7 {[%clk 0:03:01]}  Nxd7 {[%clk 0:02:11]} 22. Nb5 {[%clk 0:02:58]}  Nb6 {[%clk 0:02:08]} 23. Bd4 {[%clk 0:02:45]}  Rf7 {[%clk 0:01:56]} 24. Rb3 {[%clk 0:02:43]}  Rc4 {[%clk 0:01:47]} 25. Qa1 {[%clk 0:02:22]}  Nxb4 {[%clk 0:01:30]} 26. Qb1 {[%clk 0:02:20]}  N6xd5 {[%clk 0:01:27]} 27. Bxg7 {[%clk 0:02:19]}  Rxg7 {[%clk 0:01:27]} 28. Nbd4 {[%clk 0:02:18]}  Qf6 {[%clk 0:01:21]} 29. Rd1 {[%clk 0:02:05]}  b6 {[%clk 0:00:50]} 30. Ra3 {[%clk 0:02:04]}  h5 {[%clk 0:00:49]} 31. Qb3 {[%clk 0:02:04]}  Rc5 {[%clk 0:00:42]} 32. Ra4 {[%clk 0:02:01]}  Nd3 {[%clk 0:00:41]} 33. Rc4 {[%clk 0:01:53]}  Qg6 {[%clk 0:00:38]} 34. g3 {[%clk 0:01:48]}  Qf7 {[%clk 0:00:27]} 35. Rxc5 {[%clk 0:01:43]}  dxc5 {[%clk 0:00:26]} 36. Nc6 {[%clk 0:01:36]}  N5xf4 {[%clk 0:00:25]} 37. Qxf7+ {[%clk 0:01:25]}  Kxf7 {[%clk 0:00:26]} 38. Nxf4 {[%clk 0:01:19]}  Nxf4 {[%clk 0:00:24]} 39. Rd7+ {[%clk 0:01:19]}  Kf6 {[%clk 0:00:24]} 40. Rxg7 {[%clk 0:01:19]}  Nxh3+ {[%clk 0:00:24]} 41. Kg2 {[%clk 0:01:17]}  Kxg7 {[%clk 0:00:24]} 42. Kxh3 {[%clk 0:01:18]}  b5 {[%clk 0:00:22]} 43. Kg2 {[%clk 0:01:11]}  b4 {[%clk 0:00:22]} 44. Kf2 {[%clk 0:01:09]}  b3 {[%clk 0:00:21]} 45. Ne7 {[%clk 0:01:06]}  b2 {[%clk 0:00:20]} 0-1


[Site "https://www.chess.com"]

[Event "Titled Tuesday Blitz August 17 2021"]
[White "Kollars, Dmitrij"]
[Black "Kravtsiv, Martyn"]
[WhiteFideId "12909572"]
[BlackFideId "14113147"]
[WhiteElo "2576"]
[BlackElo "2680"]
[Result "0-1"]
[Round "05"]
[TimeControl "180+1"]
[Date "2021.08.17"]
[WhiteClock "0:00:06"]
[BlackClock "0:00:02"]

1. c4 {[%clk 0:03:00]}  Nf6 {[%clk 0:02:59]} 2. Nf3 {[%clk 0:02:59]}  e6 {[%clk 0:02:58]} 3. g3 {[%clk 0:02:59]}  d5 {[%clk 0:02:57]} 4. Bg2 {[%clk 0:02:59]}  d4 {[%clk 0:02:56]} 5. O-O {[%clk 0:02:59]}  Be7 {[%clk 0:02:51]} 6. e3 {[%clk 0:02:57]}  c5 {[%clk 0:02:45]} 7. exd4 {[%clk 0:02:57]}  cxd4 {[%clk 0:02:46]} 8. d3 {[%clk 0:02:55]}  O-O {[%clk 0:02:45]} 9. a3 {[%clk 0:02:52]}  a5 {[%clk 0:02:44]} 10. Bg5 {[%clk 0:02:52]}  Nc6 {[%clk 0:02:40]} 11. Nbd2 {[%clk 0:02:51]}  h6 {[%clk 0:02:35]} 12. Bxf6 {[%clk 0:02:51]}  Bxf6 {[%clk 0:02:36]} 13. c5 {[%clk 0:02:50]}  Be7 {[%clk 0:02:15]} 14. Rc1 {[%clk 0:02:49]}  a4 {[%clk 0:02:14]} 15. Re1 {[%clk 0:02:45]}  Ra5 {[%clk 0:02:13]} 16. Ne5 {[%clk 0:02:33]}  Nxe5 {[%clk 0:01:52]} 17. Rxe5 {[%clk 0:02:34]}  f6 {[%clk 0:01:52]} 18. Re1 {[%clk 0:02:33]}  Bxc5 {[%clk 0:01:49]} 19. b4 {[%clk 0:02:23]}  axb3 {[%clk 0:01:41]} 20. Nxb3 {[%clk 0:02:24]}  Bxa3 {[%clk 0:01:40]} 21. Rxc8 {[%clk 0:02:24]}  Qxc8 {[%clk 0:01:40]} 22. Nxa5 {[%clk 0:02:22]}  Bb4 {[%clk 0:01:41]} 23. Nxb7 {[%clk 0:02:14]}  Bxe1 {[%clk 0:01:38]} 24. Qxe1 {[%clk 0:02:15]}  Kh8 {[%clk 0:01:30]} 25. h4 {[%clk 0:02:08]}  e5 {[%clk 0:01:26]} 26. Qe4 {[%clk 0:01:59]}  Qc7 {[%clk 0:01:23]} 27. Qd5 {[%clk 0:01:44]}  Qc3 {[%clk 0:01:11]} 28. Nd6 {[%clk 0:01:33]}  Qe1+ {[%clk 0:01:08]} 29. Kh2 {[%clk 0:01:04]}  Qxf2 {[%clk 0:01:05]} 30. Kh3 {[%clk 0:01:01]}  Kh7 {[%clk 0:00:24]} 31. Qe6 {[%clk 0:00:56]}  f5 {[%clk 0:00:16]} 32. Qe7 {[%clk 0:00:37]}  Rf6 {[%clk 0:00:10]} 33. Qxe5 {[%clk 0:00:37]}  Qe3 {[%clk 0:00:09]} 34. Qd5 {[%clk 0:00:19]}  Qxd3 {[%clk 0:00:09]} 35. Ne8 {[%clk 0:00:16]}  Rg6 {[%clk 0:00:08]} 36. Qe5 {[%clk 0:00:14]}  Qe3 {[%clk 0:00:08]} 37. Qb8 {[%clk 0:00:09]}  d3 {[%clk 0:00:04]} 38. Bd5 {[%clk 0:00:08]}  Re6 {[%clk 0:00:02]} 39. Bxe6 {[%clk 0:00:07]}  Qxe6 {[%clk 0:00:02]} 40. Qd8 {[%clk 0:00:06]}  f4+ {[%clk 0:00:03]} 41. Kg2 {[%clk 0:00:06]}  Qe2+ {[%clk 0:00:03]} 42. Kh3 {[%clk 0:00:06]}  Qf1+ {[%clk 0:00:03]} 43. Kg4 {[%clk 0:00:07]}  fxg3 {[%clk 0:00:03]} 44. Kxg3 {[%clk 0:00:07]}  Qe1+ {[%clk 0:00:03]} 45. Kf3 {[%clk 0:00:06]}  d2 {[%clk 0:00:03]} 46. Qd3+ {[%clk 0:00:07]}  Kh8 {[%clk 0:00:03]} 47. Nf6 {[%clk 0:00:06]}  d1=Q+ {[%clk 0:00:02]} 0-1


[Site "https://www.chess.com"]

[Event "Titled Tuesday Blitz August 17 2021"]
[White "Krysa, Leandro"]
[Black "Sarana, Alexey"]
[WhiteFideId "116807"]
[BlackFideId "24133795"]
[WhiteElo "2490"]
[BlackElo "2646"]
[Result "0-1"]
[Round "05"]
[TimeControl "180+1"]
[Date "2021.08.17"]
[WhiteClock "0:00:09"]
[BlackClock "0:00:57"]

1. e4 {[%clk 0:03:00]}  c5 {[%clk 0:02:50]} 2. Nf3 {[%clk 0:03:00]}  d6 {[%clk 0:02:51]} 3. d4 {[%clk 0:02:57]}  cxd4 {[%clk 0:02:52]} 4. Nxd4 {[%clk 0:02:58]}  Nf6 {[%clk 0:02:52]} 5. Bc4 {[%clk 0:02:59]}  e6 {[%clk 0:02:50]} 6. Bd3 {[%clk 0:02:58]}  Nc6 {[%clk 0:02:48]} 7. Nxc6 {[%clk 0:02:56]}  bxc6 {[%clk 0:02:49]} 8. c4 {[%clk 0:02:57]}  Be7 {[%clk 0:02:47]} 9. O-O {[%clk 0:02:56]}  Nd7 {[%clk 0:02:48]} 10. Nc3 {[%clk 0:02:56]}  a5 {[%clk 0:02:46]} 11. Rb1 {[%clk 0:02:54]}  O-O {[%clk 0:02:45]} 12. b3 {[%clk 0:02:54]}  Bf6 {[%clk 0:02:45]} 13. Bd2 {[%clk 0:02:51]}  Bb7 {[%clk 0:02:45]} 14. Re1 {[%clk 0:02:51]}  Nb6 {[%clk 0:02:35]} 15. Qc2 {[%clk 0:02:45]}  g6 {[%clk 0:02:32]} 16. Bh6 {[%clk 0:02:44]}  Re8 {[%clk 0:02:32]} 17. Be3 {[%clk 0:02:44]}  Rc8 {[%clk 0:02:30]} 18. c5 {[%clk 0:02:42]}  dxc5 {[%clk 0:02:28]} 19. Bxc5 {[%clk 0:02:43]}  Nd7 {[%clk 0:02:26]} 20. Na4 {[%clk 0:02:43]}  Qc7 {[%clk 0:02:23]} 21. Rbd1 {[%clk 0:02:41]}  Red8 {[%clk 0:02:21]} 22. h3 {[%clk 0:02:38]}  Nxc5 {[%clk 0:02:17]} 23. Nxc5 {[%clk 0:02:37]}  Bd4 {[%clk 0:02:17]} 24. Bf1 {[%clk 0:02:10]}  Qe7 {[%clk 0:02:15]} 25. Rc1 {[%clk 0:02:06]}  Ra8 {[%clk 0:02:14]} 26. e5 {[%clk 0:02:02]}  Bxc5 {[%clk 0:02:10]} 27. Qxc5 {[%clk 0:02:02]}  Qxc5 {[%clk 0:02:10]} 28. Rxc5 {[%clk 0:02:02]}  a4 {[%clk 0:02:11]} 29. b4 {[%clk 0:01:59]}  a3 {[%clk 0:02:10]} 30. f3 {[%clk 0:01:49]}  Ra4 {[%clk 0:02:05]} 31. Rc3 {[%clk 0:01:37]}  Rd2 {[%clk 0:01:57]} 32. Re2 {[%clk 0:01:35]}  Rb2 {[%clk 0:01:57]} 33. Rxa3 {[%clk 0:01:22]}  Rbxb4 {[%clk 0:01:47]} 34. Rxa4 {[%clk 0:01:18]}  Rxa4 {[%clk 0:01:48]} 35. Rb2 {[%clk 0:01:18]}  Ra7 {[%clk 0:01:48]} 36. a4 {[%clk 0:01:13]}  Kf8 {[%clk 0:01:41]} 37. a5 {[%clk 0:01:11]}  Ke7 {[%clk 0:01:41]} 38. a6 {[%clk 0:01:12]}  Bc8 {[%clk 0:01:41]} 39. Kf2 {[%clk 0:00:57]}  Kd7 {[%clk 0:01:36]} 40. Ke3 {[%clk 0:00:45]}  Kc7 {[%clk 0:01:36]} 41. Ra2 {[%clk 0:00:45]}  Kb6 {[%clk 0:01:36]} 42. Rb2+ {[%clk 0:00:45]}  Kc5 {[%clk 0:01:36]} 43. f4 {[%clk 0:00:41]}  Bxa6 {[%clk 0:01:32]} 44. Bxa6 {[%clk 0:00:36]}  Rxa6 {[%clk 0:01:33]} 45. Rb7 {[%clk 0:00:37]}  Ra3+ {[%clk 0:01:33]} 46. Ke4 {[%clk 0:00:36]}  Ra4+ {[%clk 0:01:33]} 47. Ke3 {[%clk 0:00:36]}  h6 {[%clk 0:01:20]} 48. Rxf7 {[%clk 0:00:36]}  g5 {[%clk 0:01:20]} 49. g3 {[%clk 0:00:34]}  Ra3+ {[%clk 0:01:19]} 50. Kf2 {[%clk 0:00:33]}  Kd5 {[%clk 0:01:19]} 51. Rf6 {[%clk 0:00:26]}  gxf4 {[%clk 0:01:16]} 52. Rxf4 {[%clk 0:00:23]}  c5 {[%clk 0:01:16]} 53. Rh4 {[%clk 0:00:19]}  c4 {[%clk 0:01:17]} 54. Ke2 {[%clk 0:00:19]}  Rxg3 {[%clk 0:01:15]} 55. Rxh6 {[%clk 0:00:20]}  Kxe5 {[%clk 0:01:16]} 56. Rh5+ {[%clk 0:00:15]}  Kd4 {[%clk 0:01:16]} 57. Rh4+ {[%clk 0:00:15]}  Kd5 {[%clk 0:01:16]} 58. Kd2 {[%clk 0:00:11]}  e5 {[%clk 0:01:16]} 59. Rh8 {[%clk 0:00:11]}  Kd4 {[%clk 0:01:11]} 60. Rd8+ {[%clk 0:00:10]}  Ke4 {[%clk 0:01:11]} 61. h4 {[%clk 0:00:10]}  Rh3 {[%clk 0:01:05]} 62. Rh8 {[%clk 0:00:09]}  Kd4 {[%clk 0:00:57]} 0-1


[Site "https://www.chess.com"]

[Event "Titled Tuesday Blitz August 17 2021"]
[White "Ljukin, Sergei"]
[Black "Shimelkov, Vasiliy"]
[WhiteFideId "14102200"]
[BlackFideId "13701630"]
[WhiteElo "2309"]
[BlackElo "2073"]
[Result "0-1"]
[Round "05"]
[TimeControl "180+1"]
[Date "2021.08.17"]
[WhiteClock "0:00:12"]
[BlackClock "0:00:34"]

1. e4 {[%clk 0:03:00]}  c5 {[%clk 0:02:59]} 2. Nf3 {[%clk 0:03:00]}  Nc6 {[%clk 0:02:59]} 3. d4 {[%clk 0:02:59]}  cxd4 {[%clk 0:02:59]} 4. Nxd4 {[%clk 0:03:00]}  Nf6 {[%clk 0:02:59]} 5. Nc3 {[%clk 0:03:00]}  e6 {[%clk 0:02:59]} 6. Nxc6 {[%clk 0:02:58]}  bxc6 {[%clk 0:02:59]} 7. e5 {[%clk 0:02:58]}  Nd5 {[%clk 0:02:58]} 8. Ne4 {[%clk 0:02:58]}  Qc7 {[%clk 0:02:53]} 9. f4 {[%clk 0:02:58]}  Ba6 {[%clk 0:02:51]} 10. c4 {[%clk 0:02:29]}  Nb6 {[%clk 0:02:42]} 11. b3 {[%clk 0:02:12]}  Be7 {[%clk 0:02:34]} 12. Nd6+ {[%clk 0:02:04]}  Bxd6 {[%clk 0:02:29]} 13. exd6 {[%clk 0:02:04]}  Qb7 {[%clk 0:02:29]} 14. Qg4 {[%clk 0:01:58]}  O-O {[%clk 0:02:19]} 15. Bb2 {[%clk 0:01:56]}  f6 {[%clk 0:02:19]} 16. Bd3 {[%clk 0:01:31]}  Nxc4 {[%clk 0:02:08]} 17. Bc3 {[%clk 0:01:10]}  Ne3 {[%clk 0:02:01]} 18. Bxh7+ {[%clk 0:01:07]}  Kxh7 {[%clk 0:01:52]} 19. Qh3+ {[%clk 0:01:07]}  Kg8 {[%clk 0:01:53]} 20. Qxe3 {[%clk 0:01:07]}  c5 {[%clk 0:01:50]} 21. O-O-O {[%clk 0:01:04]}  Qxg2 {[%clk 0:01:45]} 22. Rhg1 {[%clk 0:00:36]}  Qxa2 {[%clk 0:01:40]} 23. Rd2 {[%clk 0:00:25]}  Qa3+ {[%clk 0:01:29]} 24. Bb2 {[%clk 0:00:23]}  Qb4 {[%clk 0:01:29]} 25. Rdg2 {[%clk 0:00:21]}  Rf7 {[%clk 0:00:37]} 26. Bxf6 {[%clk 0:00:20]}  c4 {[%clk 0:00:35]} 27. Rxg7+ {[%clk 0:00:18]}  Rxg7 {[%clk 0:00:35]} 28. Rxg7+ {[%clk 0:00:12]}  Kf8 {[%clk 0:00:34]} 0-1


[Site "https://www.chess.com"]

[Event "Titled Tuesday Blitz August 17 2021"]
[White "Lock, Gavin R"]
[Black "Amitpal, Singh"]
[WhiteFideId "408646"]
[BlackFideId "5012899"]
[WhiteElo "2104"]
[BlackElo "2107"]
[Result "1-0"]
[Round "05"]
[TimeControl "180+1"]
[Date "2021.08.18"]
[WhiteClock "0:00:15"]
[BlackClock "0:00:10"]

1. d4 {[%clk 0:03:00]}  Nf6 {[%clk 0:02:59]} 2. Nf3 {[%clk 0:03:01]}  g6 {[%clk 0:02:57]} 3. g3 {[%clk 0:03:02]}  Bg7 {[%clk 0:02:58]} 4. Bg2 {[%clk 0:03:02]}  O-O {[%clk 0:02:58]} 5. O-O {[%clk 0:03:03]}  d6 {[%clk 0:02:58]} 6. b3 {[%clk 0:03:03]}  Nc6 {[%clk 0:02:56]} 7. Bb2 {[%clk 0:03:04]}  a5 {[%clk 0:02:34]} 8. d5 {[%clk 0:02:59]}  Nb4 {[%clk 0:02:32]} 9. c4 {[%clk 0:02:58]}  c6 {[%clk 0:02:23]} 10. a3 {[%clk 0:02:44]}  Na6 {[%clk 0:02:19]} 11. dxc6 {[%clk 0:02:42]}  bxc6 {[%clk 0:02:20]} 12. Nd4 {[%clk 0:02:42]}  Bb7 {[%clk 0:01:59]} 13. Nxc6 {[%clk 0:01:48]}  Qc7 {[%clk 0:01:59]} 14. Nd4 {[%clk 0:01:48]}  Bxg2 {[%clk 0:01:53]} 15. Kxg2 {[%clk 0:01:49]}  Rab8 {[%clk 0:01:53]} 16. Nc3 {[%clk 0:01:31]}  Nc5 {[%clk 0:01:52]} 17. Ndb5 {[%clk 0:01:30]}  Qb7+ {[%clk 0:01:53]} 18. f3 {[%clk 0:01:29]}  Ng4 {[%clk 0:01:50]} 19. Bc1 {[%clk 0:00:52]}  Bxc3 {[%clk 0:01:48]} 20. Nxc3 {[%clk 0:00:52]}  Qxb3 {[%clk 0:01:48]} 21. Qxb3 {[%clk 0:00:45]}  Nxb3 {[%clk 0:01:47]} 22. Rb1 {[%clk 0:00:44]}  Nxc1 {[%clk 0:01:46]} 23. Rfxc1 {[%clk 0:00:44]}  Ne3+ {[%clk 0:01:40]} 24. Kf2 {[%clk 0:00:44]}  Nxc4 {[%clk 0:01:40]} 25. Rxb8 {[%clk 0:00:43]}  Rxb8 {[%clk 0:01:41]} 26. Nd5 {[%clk 0:00:44]}  Nxa3 {[%clk 0:01:34]} 27. Nxe7+ {[%clk 0:00:43]}  Kg7 {[%clk 0:01:28]} 28. Rc7 {[%clk 0:00:41]}  Nb5 {[%clk 0:01:22]} 29. Rc2 {[%clk 0:00:29]}  Re8 {[%clk 0:01:13]} 30. Nd5 {[%clk 0:00:28]}  Nd4 {[%clk 0:01:12]} 31. Ra2 {[%clk 0:00:27]}  Nc6 {[%clk 0:01:03]} 32. e4 {[%clk 0:00:25]}  Ra8 {[%clk 0:00:58]} 33. Ra4 {[%clk 0:00:22]}  f5 {[%clk 0:00:55]} 34. exf5 {[%clk 0:00:19]}  gxf5 {[%clk 0:00:56]} 35. h4 {[%clk 0:00:17]}  Ne5 {[%clk 0:00:51]} 36. Nc7 {[%clk 0:00:13]}  Rc8 {[%clk 0:00:46]} 37. Nb5 {[%clk 0:00:12]}  Rc5 {[%clk 0:00:39]} 38. Rxa5 {[%clk 0:00:09]}  Nc6 {[%clk 0:00:38]} 39. Ra6 {[%clk 0:00:07]}  Rxb5 {[%clk 0:00:31]} 40. Rxc6 {[%clk 0:00:07]}  Rd5 {[%clk 0:00:32]} 41. Ke3 {[%clk 0:00:07]}  Kf6 {[%clk 0:00:32]} 42. Rc7 {[%clk 0:00:07]}  h5 {[%clk 0:00:29]} 43. Kf4 {[%clk 0:00:07]}  Rd4+ {[%clk 0:00:28]} 44. Ke3 {[%clk 0:00:07]}  Ke5 {[%clk 0:00:27]} 45. Rh7 {[%clk 0:00:07]}  Ra4 {[%clk 0:00:26]} 46. Rxh5 {[%clk 0:00:07]}  Ra3+ {[%clk 0:00:26]} 47. Ke2 {[%clk 0:00:07]}  d5 {[%clk 0:00:25]} 48. g4 {[%clk 0:00:07]}  Ra2+ {[%clk 0:00:22]} 49. Ke1 {[%clk 0:00:03]}  Kf4 {[%clk 0:00:19]} 50. Rxf5+ {[%clk 0:00:04]}  Kg3 {[%clk 0:00:19]} 51. h5 {[%clk 0:00:05]}  d4 {[%clk 0:00:15]} 52. h6 {[%clk 0:00:05]}  Ra7 {[%clk 0:00:11]} 53. Rh5 {[%clk 0:00:05]}  Rh7 {[%clk 0:00:10]} 54. Ke2 {[%clk 0:00:05]}  Kf4 {[%clk 0:00:09]} 55. g5 {[%clk 0:00:05]}  Kf5 {[%clk 0:00:08]} 56. f4 {[%clk 0:00:06]}  Kg6 {[%clk 0:00:06]} 57. Rh1 {[%clk 0:00:05]}  Re7+ {[%clk 0:00:05]} 58. Kd3 {[%clk 0:00:06]}  Re3+ {[%clk 0:00:04]} 59. Kxd4 {[%clk 0:00:06]}  Rf3 {[%clk 0:00:05]} 60. Ke4 {[%clk 0:00:06]}  Ra3 {[%clk 0:00:06]} 61. h7 {[%clk 0:00:07]}  Ra4+ {[%clk 0:00:06]} 62. Kf3 {[%clk 0:00:07]}  Ra3+ {[%clk 0:00:06]} 63. Kg4 {[%clk 0:00:08]}  Ra8 {[%clk 0:00:04]} 64. h8=Q {[%clk 0:00:09]}  Rxh8 {[%clk 0:00:05]} 65. Rxh8 {[%clk 0:00:10]}  Kg7 {[%clk 0:00:05]} 66. Rh6 {[%clk 0:00:10]}  Kf7 {[%clk 0:00:05]} 67. f5 {[%clk 0:00:11]}  Kg7 {[%clk 0:00:05]} 68. Kh5 {[%clk 0:00:12]}  Kg8 {[%clk 0:00:06]} 69. Ra6 {[%clk 0:00:12]}  Kg7 {[%clk 0:00:06]} 70. Ra7+ {[%clk 0:00:13]}  Kf8 {[%clk 0:00:07]} 71. Kg6 {[%clk 0:00:13]}  Ke8 {[%clk 0:00:08]} 72. Kf6 {[%clk 0:00:14]}  Kd8 {[%clk 0:00:08]} 73. g6 {[%clk 0:00:14]}  Kc8 {[%clk 0:00:09]} 74. Re7 {[%clk 0:00:15]}  Kb8 {[%clk 0:00:10]} 75. g7 {[%clk 0:00:16]}  Kc8 {[%clk 0:00:10]} 76. g8=Q# {[%clk 0:00:15]} 1-0


[Site "https://www.chess.com"]